Cogmind - Beta 14 @@@ ROGUE MODE // 2024.12.12 @ 19:42:00 Player: Two Silent Monoliths Result: Self-destructed Performance ------------- Evolutions (1) 500 Regions Visited (3) 600 Robots Destroyed (43) 215 Value Destroyed (883) 883 Prototype IDs (5) 100 Alien Tech Used (0) 0 Bonus (0) 0 TOTAL SCORE: 2298 Bonus ------- None Cogmind --------- Core Integrity 370/400 Matter 121/300 Energy 125/125 System Corruption 0% Temperature Cool (0) Movement Treading (240) Ox1 Location -9/Materials Parts ------- > --- POWER (1) -------- Light Ion Engine > --- PROPULSION (3) --- Light Treads > --- UTILITY (3) ------ Heat Sink Large Storage Unit Improved Targeting Computer > --- WEAPON (2) ------- Backup Laser I Assault Rifle > --- INVENTORY (15) --- High-capacity Storage Unit Beam Rifle Rocket Launcher Rocket Launcher Rocket Launcher Peak State ------------ > --- POWER ------------ Light Ion Engine > --- PROPULSION ------- Light Treads Light Treads > --- UTILITY ---------- Large Storage Unit Improved Targeting Computer > --- WEAPON ----------- Beam Rifle Heavy Assault Rifle > --- INVENTORY -------- Heat Sink Improved Targeting Computer Assault Rifle Rocket Launcher Rocket Launcher Rocket Launcher [Rating: 11] Favorites ----------- Power Light Ion Engine Engine Light Ion Engine Propulsion Light Treads Treads Light Treads Hover Unit Backup Propulsion I Utility Improved Targeting Computer Device Heat Sink Storage Large Storage Unit Processor Improved Targeting Computer Weapon Rocket Launcher Energy Gun Beam Rifle Energy Cannon Beam Cannon Ballistic Gun Heavy Assault Rifle Launcher Rocket Launcher Build | -11 -10 -10 -9 ------- Run | Yrd Mat Min Mat Slots Evolved 2 | . . . 2 Power . | . . . . Propulsion 1 | . . . 1 Utility 1 | . . . 1 Weapon . | . . . . Parts Attached 24 | 6 7 6 5 Power 4 | 1 1 1 1 Engine 4 | 1 1 1 1 Core . | . . . . Reactor . | . . . . Propulsion 4 | 2 . 1 1 Treads 4 | 2 . 1 1 Leg . | . . . . Wheel . | . . . . Hover . | . . . . Flight . | . . . . Utility 4 | 1 2 . 1 Device 1 | . . . 1 Storage 2 | 1 1 . . Processor 1 | . 1 . . Hackware . | . . . . Protection . | . . . . Artifact . | . . . . Weapon 12 | 2 4 4 2 Energy Gun 1 | . . 1 . Energy Cannon 1 | . . 1 . Ballistic Gun 5 | 2 . 2 1 Ballistic Cannon . | . . . . Launcher 5 | . 4 . 1 Special Weapon . | . . . . Impact Weapon . | . . . . Slashing Weapon . | . . . . Piercing Weapon . | . . . . Special Melee Weapon . | . . . . Unidentified Prototypes . | . . . . Parts Lost 6 | . 2 1 3 Power 2 | . 1 . 1 Propulsion 2 | . . 1 1 Utility . | . . . . Weapon 2 | . 1 . 1 Highest Loss Streak 2 | . 1 1 2 To Critical Strikes . | . . . . Average Slot Usage (%) 95 | . 98 99 74 Engine 13 | . 13 14 10 Treads 25 | . 28 27 10 Device 1 | . . . 10 Storage 13 | . 14 14 11 Processor 13 | . 13 14 11 Energy Gun 5 | . . 13 4 Ballistic Gun 7 | . 2 13 8 Launcher 13 | . 25 . 5 Peak Build Rating 11 | 6 10 11 11 Average Rating 9 | 3 9 10 8 On Entrance 6 | . 6 10 11 Naked Turns . | . . . . Heaviest Build 31 | 12 31 31 31 Greatest Support 40 | 40 40 40 40 Greatest Overweight (x) 2 | . . 1 2 Average Overweight (x) . | . . . . Largest Inventory Capacity 15 | 8 15 15 15 Average Capacity 13 | 6 12 15 15 Most Carried 8 | 5 7 8 8 Average Carried 5 | 2 4 6 5 Final Capacity 15 | 8 15 15 15 Final Carried 8 | 1 5 8 5 Class Distribution -------------------- 79% | Mutant 20% | Scavenger-Mutant Dominant Class ---------------- Mutant | -10/Materials Scavenger-Mutant | -10/Mines Mutant | -9/Materials Resources | -11 -10 -10 -9 ----------- Run | Yrd Mat Min Mat Matter Collected 736 | 211 216 277 32 Remotely . | . . . . Salvage Created 822 | . 485 191 146 Parts 73 | . 39 22 12 Haulers Intercepted . | . . . . Recyclers Shooed 1 | . . . 1 Parts Field Recycled . | . . . . Retrieved Matter . | . . . . Parts Self-Destructed . | . . . . Prevented . | . . . . Kills | -11 -10 -10 -9 ------- Run | Yrd Mat Min Mat Combat Hostiles Destroyed 28 | . 14 8 6 Guns 10 | . . 7 3 Cannons 1 | . . 1 . AOE 17 | . 14 . 3 Classes Destroyed 9 | . 8 1 . Worker 6 | . 4 . 2 Builder 3 | . 3 . . Tunneler 1 | . 1 . . Recycler 1 | . 1 . . Operator 1 | . 1 . . Watcher 3 | . 3 . . Swarmer 12 | . 3 6 3 Grunt 11 | . 11 . . Sentry 5 | . . 2 3 Best Kill Streak 7 | . 7 3 4 Combat Bots Only 5 | . 5 3 4 Max Kills in Single Turn 3 | . 3 2 2 Gunslinging . | . . . . Exploded 2 | . 2 . 2 Melee . | . . . . Uniques/NPCs Destroyed . | . . . . Combat | -11 -10 -10 -9 -------- Run | Yrd Mat Min Mat Hostile Shots Fired 120 | . 31 49 40 Missed 26 | . 9 11 6 Damage Taken 1294 | . 412 401 481 Core 158 | . 72 56 30 Absorbed by Shields . | . . . . Regen/Repaired (Parts) 196 | . 57 . 139 Core Remaining (%) 74 | 100 . 48 . Volleys Fired 54 | . 20 18 16 Largest 2 | . 2 2 2 Hottest 80 | . 66 80 79 Shots Fired 93 | . 30 36 27 Gun 50 | . . 30 20 Cannon 6 | . . 6 . Launcher 37 | . 30 . 7 Special . | . . . . Kinetic 33 | . . 18 15 Thermal 23 | . . 18 5 Explosive 37 | . 30 . 7 Electromagnetic . | . . . . Robot Hit Streak 10 | . 3 10 7 Robot Miss Streak 3 | . 3 3 2 Penetration Max . | . . . . Secondary Targets 2 | . . 1 1 Max Gunslinging Chain 1 | . . 1 1 Shots Hit Robots 50 | . 11 23 16 Core Hits 60 | . 36 11 13 Critical Kills . | . . . . Critical Parts Destroyed . | . . . . Critical Strikes 2 | . . 2 . Burn 2 | . . 2 . Melee Attacks . | . . . . Impact . | . . . . Slashing . | . . . . Piercing . | . . . . Sneak Attacks . | . . . . Combat Hostiles . | . . . . Follow-up Attacks . | . . . . Damage Inflicted 2544 | . 1643 368 533 Guns 468 | . . 263 205 Cannons 105 | . . 105 . Explosions 1958 | . 1630 . 328 Melee . | . . . . Ramming 13 | . 13 . . Kinetic 345 | . . 162 183 Thermal 263 | . 35 206 22 Explosive 1892 | . 1564 . 328 Electromagnetic 31 | . 31 . . Impact . | . . . . Slashing . | . . . . Piercing . | . . . . Highest Corruption . | . . . . Average Corruption . | . . . . Corruption Purged . | . . . . Corruption Blocked . | . . . . Overload Shots . | . . . . Overflow Damage 57 | . 56 . 1 Projectiles . | . . . . Explosions 57 | . 56 . 1 Melee . | . . . . Knockbacks . | . . . . Impact . | . . . . Kinetic . | . . . . Secondary . | . . . . Self-Inflicted Damage 245 | . 175 . 70 Shots 9 | . 7 . 2 Rammed 2 | . 2 . . Targets Rammed 3 | . 3 . . Kicked . | . . . . Crushed 1 | . 1 . . Highest Temperature 180 | . 18 180 36 Average Temperature 39 | . 7 61 18 Received Heat Transfer 327 | . 102 81 144 Siege Activations . | . . . . Robots Corrupted . | . . . . Combat Hostiles . | . . . . Parts Fried . | . . . . Impact Corruptions . | . . . . Robots Melted . | . . . . Combat Hostiles . | . . . . Parts Melted 1 | . . 1 . Heat Transferred 753 | . 50 629 74 Parts Sabotaged . | . . . . Parts Stolen . | . . . . Parts Stripped . | . . . . Power Chain Reactions 2 | . 2 . . Alert | -11 -10 -10 -9 ------- Run | Yrd Mat Min Mat Peak Influence 341 | . 341 188 285 Initial 88 | . . 88 . Average 102 | . 99 77 193 Maximum Alert Level 1 | . 1 . 1 Low Security (%) 85 | 100 86 100 40 Level 1 14 | . 13 . 60 Level 2 . | . . . . Level 3 . | . . . . Level 4 . | . . . . Level 5 . | . . . . High Security . | . . . . Max Security . | . . . . Squads Dispatched 4 | . 4 . . Investigation 2 | . 2 . . Extermination . | . . . . Reinforcement 2 | . 2 . . Assault . | . . . . Garrison . | . . . . Intercept . | . . . . Searches Triggered . | . . . . Construction Impeded . | . . . . Haulers Reinforced . | . . . . Active Scanning Responses . | . . . . Cargo Convoy Interrupts . | . . . . Stealth | -11 -10 -10 -9 --------- Run | Yrd Mat Min Mat Distress Signals 1 | . . . 1 Communications Jammed . | . . . . Distress Signals . | . . . . Times Spotted 37 | . 19 9 9 Peak Tracking Total 5 | . 4 3 5 Tactical Retreats 2 | . . 1 1 Traps | -11 -10 -10 -9 ------- Run | Yrd Mat Min Mat Traps Triggered 1 | . 1 . . Indirectly 1 | . 1 . . Trap Hack Attempts . | . . . . Triggered . | . . . . Disarmed . | . . . . Reprogrammed 3 | . 3 . . Reused 1 | . 1 . . Traps Extracted . | . . . . Installed . | . . . . Triggered 1 | . 1 . . Machines | -11 -10 -10 -9 ---------- Run | Yrd Mat Min Mat Machines Disabled 4 | . 4 . . Max in Single Turn 1 | . 1 . . Machines Repaired . | . . . . Machines Dismantled . | . . . . Machines Sabotaged . | . . . . Overloaded Fab Kills . | . . . . Hacking | -11 -10 -10 -9 --------- Run | Yrd Mat Min Mat Machines Accessed 9 | . 6 . 3 Terminals 6 | . 5 . 1 Fabricators . | . . . . Repair Stations 2 | . 1 . 1 Recycling Units . | . . . . Scanalyzers 1 | . . . 1 Garrison Access . | . . . . Total Hacks 45 | . 19 . 26 Successful 32 | . 14 . 18 Failed 13 | . 5 . 8 Catastrophic 2 | . 2 . . Database Lockouts . | . . . . Manual . | . . . . Terminals 29 | . 16 . 13 Fabricators . | . . . . Repair Stations 10 | . 3 . 7 Recycling Units . | . . . . Scanalyzers 6 | . . . 6 Garrison Access . | . . . . Terminal Hacks 19 | . 12 . 7 Record 4 | . 1 . 3 Prototype ID Bank 2 | . 2 . . Level Access Points 1 | . 1 . . Branch Access Points 1 | . 1 . . Emergency Access Points 1 | . . . 1 Terminal Index 1 | . 1 . . Alert Level 1 | . 1 . . Unreport Threat 1 | . 1 . . Reprogram Traps 1 | . 1 . . Dispatch Records 1 | . . . 1 Transport Status 1 | . 1 . . Investigation Status 1 | . 1 . . Hauler Manifests 2 | . 1 . 1 Registered Prototypes 1 | . . . 1 Fabricator Hacks . | . . . . Repair Station Hacks 7 | . 2 . 5 Scan Component 3 | . 1 . 2 Repair 3 | . 1 . 2 Refit 1 | . . . 1 Recycling Unit Hacks . | . . . . Scanalyzer 6 | . . . 6 Insert Component 3 | . . . 3 Analyze 3 | . . . 3 Garrison Access Hacks . | . . . . Unauthorized Hacks . | . . . . Terminals . | . . . . Fabricators . | . . . . Repair Stations . | . . . . Recycling Units . | . . . . Scanalyzers . | . . . . Garrison Access . | . . . . Data Cores Recovered . | . . . . Used . | . . . . Hacking Detections 8 | . 5 . 3 Full Trace Events 1 | . . . 1 Feedback Events . | . . . . Feedback Blocked . | . . . . Robot Schematics Acquired . | . . . . Robots Built . | . . . . Authchips . | . . . . Time . | . . . . Total Robot Build Rating . | . . . . Part Schematics Acquired 3 | . . . 3 Parts Built . | . . . . Authchips . | . . . . Time . | . . . . Total Part Build Rating . | . . . . Parts Repaired 3 | . 1 . 2 Time 90 | . 32 . 58 Parts Recycled . | . . . . Recycled Matter . | . . . . Retrieved Matter . | . . . . Retrieved Components . | . . . . Parts Scanalyzed 3 | . . . 3 Part Schematics Acquired 3 | . . . 3 Parts Damaged 1 | . . . 1 Bothacking | -11 -10 -10 -9 ------------ Run | Yrd Mat Min Mat Used RIF Installer . | . . . . Robots Hacked . | . . . . Non-combat . | . . . . Combat . | . . . . Robot Hacks Applied . | . . . . Relay Couplers Released . | . . . . Fabnet Peak Effective % . | . . . . Robots Rewired . | . . . . Allies Hacked . | . . . . Hacks Repelled . | . . . . Allies | -11 -10 -10 -9 -------- Run | Yrd Mat Min Mat Total Allies . | . . . . Largest Group . | . . . . Highest-Rated Group . | . . . . Highest-Rated Ally . | . . . . Total Orders . | . . . . Ally Attacks . | . . . . Total Damage . | . . . . Kills . | . . . . Allies Corrupted . | . . . . Allies Melted . | . . . . Intel | -11 -10 -10 -9 ------- Run | Yrd Mat Min Mat Robot Analysis Total . | . . . . Derelict Logs Recovered 2 | . . 2 . Drone Launches . | . . . . Drone Recoveries . | . . . . Exploration | -11 -10 -10 -9 ------------- Run | Yrd Mat Min Mat Turns Passed 2689 | 43 1288 998 360 Spaces Moved 1465 | 28 740 576 121 Core 12 | 12 . . . Treads 1450 | 16 740 576 118 Legs . | . . . . Wheels . | . . . . Hover 3 | . . . 3 Flight . | . . . . Fastest Speed 50 | 50 160 160 160 Average Speed 165 | 112 160 161 232 Slowest Speed 240 | 160 160 240 240 Overloaded Moves . | . . . . Propulsion Burnouts . | . . . . Robots Hopped . | . . . . Cave-ins Triggered . | . . . . Exploration Rate (%) 53 | 4 93 99 16 Regions Visited 3 Branch Regions 1 Pre-discovered Areas 1 | . . 1 . Known Exits Taken 2 | . 1 1 . Unknown Exits Taken 1 | 1 . . . Scrap Searched 2 | . . 2 . Spaces Dug . | . . . . Terrain Destroyed 263 | . 182 . 81 Melee . | . . . . Projectile . | . . . . AOE 263 | . 182 . 81 Terrain Rammed . | . . . . Walls Destroyed . | . . . . Machines Disabled . | . . . . Actions | -11 -10 -10 -9 --------- Run | Yrd Mat Min Mat Total 1629 | 38 811 607 173 Wait 58 | . 32 . 26 Move 1462 | 27 739 575 121 Hop . | . . . . Pick Up 22 | 5 9 6 2 Fast Attach 2 | 2 . . . Attach 12 | 4 3 2 3 Detach . | . . . . Swap 10 | . 4 4 2 Drop 6 | . 1 2 3 Fire 54 | . 20 18 16 Melee . | . . . . Ram . | . . . . Kick . | . . . . Crush 3 | . 3 . . Escape Stasis . | . . . . Rewire . | . . . . Trap . | . . . . Miscellaneous . | . . . . Route ------- -11/Scrapyard -10/Materials (discovered 4 exits: *Mat x3 / *Min) -10/Mines (discovered 2 exits: *Mat x2) -9/Materials (discovered 2 exits: Mat / Min) History --------- Turn | Location | Event 10 | -11/Scrapyard | Discovered new exit (range 16) 44 | -11/Scrapyard | Entered Materials 135 | -10/Materials | Discovered new exit (range 10) 218 | -10/Materials | Identified exit to Mines 250 | -10/Materials | Identified exit to Materials 316 | -10/Materials | Build established: Mutant 731 | -10/Materials | Repaired Rocket Launcher 1332 | -10/Materials | Entered Mines 1435 | -10/Mines | Discovered exit to Materials (range 6) 1486 | -10/Mines | Learned location of Zion (-7) 2029 | -10/Mines | Discovered exit to Materials (range 9) 2056 | -10/Mines | Core integrity fell below 50% 2080 | -10/Mines | Learned location of 2 exits from Materials 2110 | -10/Mines | Build established: Scavenger-Mutant 2330 | -10/Mines | Entered Materials 2330 | -9/Materials | Evolved 2 slots: Propulsion x1, Utility x1 2331 | -9/Materials | Identified exit to Mines 2331 | -9/Materials | Identified exit to Materials 2575 | -9/Materials | Repaired Rocket Launcher 2601 | -9/Materials | Repaired Lgt. Treads 2651 | -9/Materials | Build established: Mutant 2690 | -9/Materials | Self-destructed Last Messages --------------- Ready to Repair: Lgt. Treads Rating: 1 Time: 26 Repair station completes Rocket Launcher repairs. >>Repair Cancelling repair: Rocket Launcher. Repairing Lgt. Treads... ETC: 26 >>Refit Scanning configuration... Attaching: Backup Propulsion I x2 Backup Laser I x1 Repair station completes Lgt. Treads repairs. Acquired Lgt. Treads. Acquired Rocket Launcher. Dropped Backup Propulsion I. Y-45 Defender destroyed. Map ----- +----------------------------------------------------+ | ?????????????????????????????????????????????????? | | ?????????????????????????????????????????????????? | | ?????????????????????????????????????????????????? | | ?????????????????????????????????????????????????? | | ?????????????????????????????????????????????????? | | ?????????????????????????????????????????????????? | | ?????????????????????????????????????????????????? | | ?????????????????????????????????????????????????? | | ?????????????????????????????????????????????????? | | ?????????????????????????????????????????????????? | | ?????????????????????????????????????????????????? | | ?????????????????????????????????????????????????? | | ?????????????????????????????????????????????????? | | ?????????????????????????????????????????????????? | | ?????????????? ????????????????????????????? | | ????????????? ????????????????????????????? | | ????????????? ???????????????????????????? | | ????????????? ????????????????????????????? | | ????????????? ????????????????????????????? | | ?????????????? ##+#####?????????????????????? | | ??????????????# # * #?????????????????????? | | ??????????????# # #?????????????????????? | | ?##########???# # """" #?????????????????????? | | ?# #???# # """" #?????????????????????? | | ?# #???# # """" #?????????????????????? | | ?# #???# # @ #?????????????????????? | | #[ #???# #####/##??#######????????????? | | %+! === #???# #??##g##### #????????????? | | ?#! == ##### #### #????????????? | | ?# == + #?#??????????? | | ?# ######### #### % # ???????????? | | ?# #???????# #??######## #????????????? | | ?#######+###??????# ############ ##????????????? | | ?# #??????# ## # #?????????????? | | ?# #??????# ## """ # #?????????????? | | ?# #??????# ## """"" + ########+#????? | | ?# == """ #??????# ## """"" # # #????? | | ?# " " """ #??????# ## """"" # # #????? | | ?# "R" """ #??????? ?# """ # # #????? | | ?# """ #??????? ?# # # #????? | | ?# #??????# ## # # #????? | | ?######+####??????# #####+###### # "" #????? | | ?????# #????????+ #???# #????# + """ #????? | | ###### #????????# #####+##???# # !S" #????? | | ##???????# # #???# # #????? | | ### #######?# # #??## ##########????? | | ###+ ## ##### # """ #??# ########?????? | | # """ #??# #?????? | | "" # # """ #??# T #?????? | | "" #??# #?????? | +----------------------------------------------------+ Best States ------------- Heat Dissipation 38 Energy Generation 10 Energy Capacity 125 Matter Stores 251 Matter Capacity 300 Sight Range 16 Terrain Scan Density 10 Evasion (%) 50 Targeting Accuracy 6 Recoil Reduction 2 Item Schematics ----------------- Hcp. Storage Unit | -9/Materials | Scanalyzed Rocket Launcher | -9/Materials | Scanalyzed Imp. Targeting Computer | -9/Materials | Scanalyzed Robot Schematics ------------------ None Fabricated ------------ Nothing Alien Tech Used ----------------- None Achievements -------------- None Challenges ------------ None Game ------ Seed MetaTrapShovel Manual? 0 Play Time 00:16:56 Cumulative 6.8 hours Start 2024.12.12 @ 19:24:48 End 2024.12.12 @ 19:42:00 Sessions 1 Manual Loads 0 Difficulty Rogue Special Mode None Game No. 10 Rogue 10 Adventurer 0 Explorer 0 Win Type - Total 0 Types 0/0/0/0/0/0/0/0/0 Lore% 9 Gallery% 13 Achievement% 17 Wizard Run 0 Options --------- Layout 1 ASCII 0 Keyboard 0 Movement Mouse Keybinds 0 Fullscreen 1 Font 24/Smallcaps Map View 50x35 Zoom Use 0% Tactical HUD 0 Map Filters NONE Filters NONE Steam 1 RUN: a38c0fda-6d13-49cd-a069-06d1b791b7e3